bitfinex-derivatives/quotes_BNBF0:USTF0_20250406
["timestamp","ask_amount","ask_price","bid_price","bid_amount"]
[1743964324579,4.886,559.45,558.25,0.29873135]
[1743964324780,4.886,559.45,558.26,0.29873135]
[1743964324981,4.886,559.45,558.27,0.29873135]
[1743964325179,4.886,559.45,558.28,0.29873135]
[1743964325379,4.886,559.45,558.29,0.29873135]
[1743964325576,4.886,559.45,558.3,0.29873135]
[1743964325777,4.886,559.45,558.31,0.29873135]
[1743964326081,4.886,559.45,558.32,0.29873135]
[1743964326282,4.886,559.45,558.33,0.29873135]
[1743964326481,4.886,559.45,558.34,0.29873135]
[1743964326778,4.886,559.45,558.35,0.29873135]
[1743964326983,4.886,559.45,558.36,0.29873135]
[1743964327181,4.886,559.45,558.37,0.29873135]
[1743964327382,4.886,559.45,558.38,0.29873135]
[1743964327582,4.886,559.45,558.22,0.29873135]
[1743964327779,4.886,559.45,558.39,0.29873135]
[1743964327985,4.886,559.45,558.4,0.29873135]
[1743964328181,4.886,559.45,558.41,0.29873135]
[1743964328379,4.886,559.45,558.42,0.29873135]
[1743964328583,4.886,559.45,558.43,0.29873135]
[1743964328783,4.886,559.45,558.44,0.29873135]
[1743964329080,4.886,559.45,558.45,0.29873135]
[1743964329384,4.886,559.45,558.46,0.29873135]
[1743964329687,4.886,559.45,558.62,1.31653437]
[1743964329882,4.886,559.45,558.63,0.29873135]
[1743964331387,4.886,559.45,558.64,0.29873135]
[1743964331584,4.886,559.45,558.65,0.29873135]
[1743964331786,4.886,559.45,558.66,0.29873135]
[1743964332087,4.886,559.45,558.67,0.29873135]
[1743964332289,4.886,559.45,558.49,0.29873135]
[1743964332481,4.886,559.45,558.5,0.29873135]
[1743964332682,4.886,559.45,558.51,0.29873135]
[1743964332883,4.886,559.45,558.52,0.29873135]
[1743964333185,4.886,559.45,558.53,0.29873135]
[1743964333383,4.886,559.45,558.54,0.29873135]
[1743964333585,4.886,559.45,558.49,0.29873135]
[1743964333787,4.886,559.45,558.5,0.29873135]
[1743964333988,4.886,559.45,558.51,0.29873135]
[1743964334190,4.886,559.45,558.52,0.29873135]
[1743964334391,4.886,559.45,558.53,0.65681417]
[1743964334591,4.886,559.45,558.54,0.29873135]
[1743964334892,4.886,559.45,558.55,0.29873135]
[1743964335091,4.886,559.45,558.56,0.29873135]
[1743964335291,4.886,559.45,558.57,0.29873135]
[1743964335490,4.886,559.45,558.58,0.65678212]
[1743964335690,4.886,559.45,558.59,0.29873135]
[1743964335890,4.886,559.45,558.58,0.35805077]
[1743964335891,4.886,559.45,558.74,1.31653437]
[1743964336091,4.886,559.45,558.75,0.29873135]
[1743964337093,4.886,559.45,558.74,1.31653437]
[1743964337294,4.886,559.45,558.75,0.29877414]
[1743964338192,4.886,559.45,558.69,0.29877414]
[1743964338694,4.886,559.45,558.68,1.31653437]
[1743964338896,4.886,559.45,558.69,0.29892046]
[1743964340392,4.886,559.45,558.59,0.29892046]
[1743964342297,4.886,559.45,558.58,0.35805077]
[1743964342496,4.886,559.45,558.59,0.29889874]
[1743964342799,4.886,559.45,558.66,1.31653437]
[1743964344501,0.35750035,559.44,558.66,1.31653437]
[1743964345406,0.35750035,559.44,558.36,2.71072876]
[1743964345407,0.35750035,559.44,558.06,1.31653437]
[1743964345601,0.35750035,559.44,558.08,0.35837155]
[1743964345806,0.35750035,559.44,558.09,0.29895908]
[1743964346007,0.35750035,559.44,558.1,0.29895908]
[1743964346204,0.35750035,559.44,558.11,0.29895908]
[1743964346404,0.35750035,559.44,558.12,0.29895908]
[1743964346609,0.35750035,559.44,558.13,0.29895908]
[1743964346806,0.35750035,559.44,558.14,0.29895908]
[1743964347006,0.35750035,559.44,558.15,0.29895908]
[1743964347203,1.40450035,559.44,558.16,0.29895908]
[1743964347408,2.31850035,559.44,558.17,0.29885137]
[1743964347607,2.776,559.44,558.3,1.31653437]
[1743964347806,2.776,559.44,558.31,0.29885137]
[1743964348010,2.776,559.44,558.32,0.65706887]
[1743964348311,5.687,559.44,558.33,0.29885137]
[1743964348611,5.687,559.44,558.34,0.65705604]
[1743964348910,5.687,559.44,558.35,0.29885137]
[1743964349209,5.687,559.44,558.36,0.29885137]
[1743964349412,5.687,559.44,558.35,0.29885137]
[1743964349710,5.687,559.44,558.34,0.35820467]
[1743964349913,5.687,559.44,558.35,0.29888095]
[1743964350113,5.687,559.44,558.43,1.31653437]
[1743964350310,5.687,559.44,558.44,0.29888095]
[1743964350815,0.9821769,559.43,558.44,0.29888095]
[1743964351016,3.7929679,559.43,558.44,0.29888095]
[1743964351209,0.62468377,559.42,558.44,0.29888095]
[1743964351414,3.79308774,559.43,558.44,0.29888095]
[1743964351615,2.14431312,559.42,558.44,0.29888095]
[1743964351812,1.29126788,559.41,558.44,0.29888095]
[1743964352015,3.435581,559.41,558.44,0.29888095]
[1743964352214,3.435581,559.4,558.35,0.29888095]
[1743964352417,2.14431312,559.39,558.35,0.29888095]
[1743964352612,1.29126788,559.38,558.35,0.29888095]
[1743964353218,3.43695299,559.42,558.35,0.29888095]
[1743964353416,2.14568511,559.41,558.35,0.29888095]
[1743964353617,1.29126788,559.4,558.35,0.29888095]
[1743964354516,1.29126788,559.42,558.36,0.29888095]
[1743964354716,1.29126788,559.42,558.35,0.29888095]
[1743964355018,1.29126788,559.42,558.36,0.29888095]
[1743964355218,1.29126788,559.42,558.35,0.29888095]
[1743964355415,1.29126788,559.42,558.36,0.29888095]
[1743964355616,1.29126788,559.42,558.35,0.29888095]
[1743964355817,1.64877462,559.43,558.35,0.29888095]
[1743964356620,3.7938967,559.43,558.35,0.29888095]
[1743964356818,1.64877462,559.43,558.35,0.29888095]
[1743964357021,3.79440803,559.43,558.35,0.29888095]
[1743964357319,2.50314654,559.42,558.35,0.29888095]
[1743964357519,1.9163558,559.41,558.36,0.29904179]
[1743964357720,1.52029901,559.4,558.34,0.35820467]
[1743964357919,2.14538693,559.4,558.34,0.35820467]
[1743964358121,2.14538693,559.4,558.35,0.29904705]
[1743964358422,1.29126788,559.39,558.35,0.29904705]
[1743964358616,1.29126788,559.39,558.34,0.35820467]
[1743964358617,3.43665481,559.39,558.34,0.35820467]
[1743964358821,2.14538693,559.38,558.34,0.35820467]
[1743964359022,2.14538693,559.38,558.35,0.29905761]
[1743964359323,2.14538693,559.38,558.34,0.35820467]
[1743964359324,3.43665481,559.37,558.34,0.35820467]
[1743964359522,2.47314714,559.36,558.34,0.35820467]
[1743964359723,2.47314714,559.35,558.34,0.35820467]
[1743964359924,3.76441502,559.34,557.79,1.31653437]
[1743964360124,2.47314714,559.33,557.8,0.29927984]
[1743964360320,2.47314714,559.32,557.8,0.29927984]
[1743964360518,3.43541036,559.31,557.8,0.29927984]
[1743964360718,2.47314714,559.3,557.8,0.29927984]
[1743964360920,3.76441502,559.29,557.8,0.29927984]
[1743964361124,2.47314714,559.28,557.8,0.29927984]
[1743964361324,3.76441502,559.27,557.8,0.29927984]
[1743964361522,2.47314714,559.26,557.8,0.29927984]
[1743964361724,3.76441502,559.25,557.8,0.29927984]
[1743964362024,2.14414248,559.24,557.8,0.29927984]
[1743964362218,3.43541036,559.23,557.81,0.35854502]
[1743964362423,2.14414248,559.22,557.81,0.35854502]
[1743964362620,0.62254796,559.21,557.82,0.29924642]
[1743964362825,2.14160252,559.22,557.82,0.29924642]
[1743964363025,1.29126788,559.21,557.83,0.29924642]
[1743964363225,2.20326788,559.21,557.84,0.29924642]
[1743964363421,2.20326788,559.21,557.85,0.29924642]
[1743964363626,0.912,559.21,557.86,0.29924642]
[1743964363925,0.912,559.21,557.87,0.29924642]
[1743964364127,0.912,559.21,557.88,0.29924642]
[1743964364325,0.912,559.21,557.89,0.29924642]
[1743964364526,0.31145538,559.2,557.9,0.29924642]
[1743964364728,0.31145538,559.2,557.91,0.35848075]
[1743964364919,0.31145538,559.2,557.92,0.29924642]
[1743964366125,1.16745538,559.2,557.92,0.29924642]
[1743964366526,2.6823744,559.2,557.92,0.29924642]
[1743964366728,0.62253756,559.19,557.92,0.29924642]
[1743964366927,1.91380544,559.19,557.92,0.29924642]
[1743964367133,1.51491902,559.18,557.92,0.29924642]
[1743964367428,1.51491902,559.18,557.91,0.35848075]
[1743964367429,0.35767297,559.17,557.91,0.35848075]
[1743964367627,1.64894085,559.17,557.92,0.299178]
[1743964368125,1.64894085,559.17,557.93,0.3584679]
[1743964368326,1.64894085,559.17,557.94,0.299178]
[1743964368526,3.78638948,559.17,557.94,0.299178]
[1743964368726,2.13672622,559.16,557.94,0.299178]
[1743964369029,1.64895365,559.15,557.94,0.299178]
[1743964369229,0.35769217,559.14,557.94,0.299178]
[1743964369529,0.32904385,559.13,557.94,0.299178]
[1743964369722,0.62274229,559.13,557.94,0.299178]
[1743964369926,1.91401017,559.13,557.95,0.29927143]
[1743964370125,1.51398393,559.12,557.94,0.29927143]
[1743964370328,1.29126788,559.11,557.95,0.29927143]
[1743964370621,3.4279941,559.11,557.96,0.29927143]
[1743964370828,3.4279941,559.1,557.94,0.29927143]
[1743964371024,2.13672622,559.09,557.95,0.29927143]
[1743964371228,2.13672622,559.09,557.94,0.29927143]
[1743964371523,2.13672622,559.09,557.95,0.29927143]
[1743964371727,2.13672622,559.09,557.93,0.3584679]
[1743964371728,0.35773695,559.07,557.93,0.3584679]
[1743964372128,2.49446317,559.07,557.93,0.3584679]
[1743964372329,1.91401017,559.06,557.93,0.3584679]
[1743964372530,0.35775615,559.04,557.93,0.3584679]
[1743964373632,0.6693412,559.04,557.93,0.3584679]
[1743964374333,1.077,559.03,557.93,0.3584679]
[1743964374531,0.35776895,559.02,557.93,0.3584679]
[1743964375129,0.35776895,559.02,557.94,0.29920719]
[1743964375932,0.35776895,559.02,557.93,0.3584679]
[1743964376134,0.35776895,559.02,557.94,0.29910558]
[1743964376334,0.873,559.01,557.94,0.29910558]
[1743964376933,0.972,559.0,557.94,0.29910558]
[1743964378234,0.35778815,558.99,557.94,0.29910558]
[1743964378727,0.35778815,558.99,557.93,0.3584679]
[1743964378933,0.35778815,558.99,557.94,0.29919626]
[1743964379929,1.8669231,558.99,557.94,0.29919626]
[1743964380135,0.6205231,558.98,557.94,0.29919626]
[1743964380334,2.12965805,558.98,557.94,0.29919626]
[1743964380634,1.28257894,558.97,557.94,0.29919626]
[1743964380832,1.28257894,558.97,557.93,0.3584679]
[1743964381032,0.97787277,558.99,557.93,0.3584679]
[1743964381233,2.48604663,558.99,557.93,0.3584679]
[1743964381434,1.90266356,558.98,557.93,0.3584679]
[1743964381633,1.28257894,558.98,557.93,0.3584679]
[1743964382033,2.25999182,558.99,557.93,0.3584679]
[1743964382233,1.50703885,558.98,557.93,0.3584679]
[1743964382432,2.12666358,558.98,557.94,0.29931346]
[1743964382635,2.43832119,558.98,557.93,0.3584679]
[1743964382833,1.28257894,558.97,557.93,0.3584679]
[1743964383032,0.32915488,558.96,557.94,0.29937469]
[1743964383337,0.32917316,558.95,557.93,0.3584679]
[1743964383532,0.32917316,558.97,557.93,0.3584679]
[1743964383732,0.31165761,558.98,557.93,0.3584679]
[1743964383733,0.32917316,558.94,557.93,0.3584679]
[1743964383934,0.32917316,558.93,557.93,0.3584679]
[1743964384135,2.4364282,558.98,557.93,0.3584679]
[1743964384136,2.2280078,558.97,557.93,0.3584679]
[1743964384433,1.83485425,558.96,557.94,0.29938099]
[1743964384633,0.32917316,558.95,557.94,0.29938099]
[1743964384935,0.32917316,558.95,557.95,0.35845505]
[1743964385238,0.32917215,558.94,557.95,0.35845505]
[1743964385542,1.92052466,558.94,557.95,0.35845505]
[1743964385736,3.73368788,558.93,557.95,0.35845505]
[1743964385932,3.40451573,558.92,557.95,0.35845505]
[1743964386235,2.12477059,558.91,557.95,0.35845505]
[1743964386432,0.94746312,558.9,557.95,0.35845505]
[1743964386633,1.27974514,558.9,557.95,0.35845505]
[1743964386838,3.403664,558.9,557.95,0.35845505]
[1743964387040,2.80798291,558.89,557.95,0.35845505]
[1743964387334,2.12316661,558.88,557.95,0.35845505]
[1743964387738,1.27974514,558.87,557.95,0.35845505]
[1743964388039,3.40291175,558.87,557.95,0.35845505]
[1743964388236,2.12316661,558.86,557.95,0.35845505]
[1743964388436,1.27974514,558.85,557.95,0.35845505]
[1743964388637,3.40291175,558.85,557.95,0.35845505]
[1743964388837,2.12316661,558.84,557.95,0.35845505]
[1743964389037,0.6187125,558.83,557.95,0.35845505]
[1743964389245,2.12364134,558.84,557.95,0.35845505]
[1743964389542,1.27974514,558.83,557.95,0.35845505]
[1743964389837,3.40338648,558.83,557.95,0.35845505]
[1743964390041,3.40338648,558.82,557.06,0.31174136]
[1743964390341,0.3579098,558.8,557.08,0.35901486]
[1743964390540,0.3579098,558.8,557.09,0.29942374]
[1743964390737,0.3579098,558.8,557.08,0.35901486]
[1743964390738,0.3579098,558.8,557.1,0.29942374]
[1743964390938,1.63765494,558.8,557.11,0.29942374]
[1743964391138,0.31177767,558.79,557.11,0.29942374]
[1743964391342,2.43541901,558.79,557.12,0.29942374]
[1743964391542,2.43541901,558.79,557.13,0.29942374]
[1743964391746,2.43541901,558.79,557.14,0.29942374]
[1743964391943,1.27974514,558.78,557.15,0.29942374]
[1743964392140,3.40338648,558.78,557.16,0.29942374]
[1743964392439,3.40338648,558.77,557.17,0.29942374]
[1743964392639,2.12364134,558.76,557.09,0.29942374]
[1743964392943,1.27974514,558.75,557.11,0.35899553]
[1743964393139,1.27974514,558.75,557.12,0.29942374]
[1743964393344,1.27974514,558.75,557.14,0.35897619]
[1743964393544,0.35794824,558.74,557.15,0.29942374]
[1743964393839,0.35794824,558.74,557.17,0.35895687]
[1743964394044,0.35794824,558.74,557.18,0.29942374]
[1743964394245,0.669,558.73,557.18,0.29942374]
[1743964394938,0.774,558.72,557.18,0.29942374]
[1743964395142,0.774,558.72,557.17,0.35895687]
[1743964395342,0.774,558.72,557.18,0.29937541]
[1743964395644,0.774,558.72,557.2,0.35893754]
[1743964395839,0.774,558.72,557.21,0.29937541]
[1743964396241,0.774,558.72,557.22,0.29937541]
[1743964396444,0.774,558.72,557.23,0.29937541]
[1743964396646,0.3117651,558.71,557.2,0.35893754]
[1743964396847,0.3117651,558.71,557.21,0.29944366]
[1743964397247,2.43682348,558.71,557.21,0.29944366]
[1743964397848,2.12625076,558.7,557.21,0.29944366]
[1743964398051,2.12625076,558.69,557.21,0.29944366]
[1743964398252,2.12625076,558.68,557.2,0.35893754]
[1743964398551,3.4059959,558.67,557.21,0.29950829]
[1743964398748,3.4059959,558.66,557.22,0.35892466]
[1743964398950,2.12625076,558.65,557.23,0.29950829]
[1743964399150,1.27974514,558.64,557.23,0.29950829]
[1743964399450,3.4059959,558.64,557.23,0.29950829]
[1743964399645,2.12625076,558.63,557.23,0.29950829]
[1743964400047,1.27974514,558.62,557.23,0.29950829]
[1743964400246,3.4059959,558.62,557.23,0.29950829]
[1743964400446,2.12625076,558.61,557.23,0.29950829]
[1743964400652,3.4059959,558.61,557.23,0.29950829]
[1743964400852,1.27974514,558.61,557.24,0.29950829]
[1743964401049,1.27974514,558.61,557.23,0.29950829]
[1743964401251,0.93171052,558.71,557.23,0.29950829]
[1743964401855,2.21145566,558.71,557.23,0.29950829]
[1743964402055,1.50710005,558.7,557.23,0.29950829]
[1743964402248,2.12704547,558.7,557.23,0.29950829]
[1743964402454,0.32932811,558.69,557.23,0.29950829]
[1743964402654,1.60907325,558.69,557.23,0.29950829]
[1743964402849,3.73611872,558.69,557.23,0.29950829]
[1743964403050,2.45637358,558.68,557.23,0.29950829]
[1743964403254,1.60907325,558.67,557.23,0.29950829]
[1743964403451,0.32932811,558.66,557.23,0.29950829]
[1743964403755,1.27974514,558.65,557.23,0.29950829]
[1743964403955,3.40679061,558.65,557.22,0.35892466]
[1743964404257,3.73623766,558.64,557.23,0.2996622]
[1743964404457,3.73623766,558.63,557.23,0.2996622]
[1743964404657,2.45649252,558.62,557.23,0.2996622]
[1743964404958,2.45649252,558.61,557.23,0.2996622]
[1743964405256,3.73623766,558.6,557.24,0.2996622]
[1743964405448,2.45649252,558.59,556.62,0.2996622]
[1743964405648,2.45649252,558.58,556.64,0.35929864]
[1743964405854,3.73623766,558.57,556.65,0.2996622]
[1743964406054,3.73623766,558.57,556.64,0.35929864]
[1743964406055,2.45649252,558.56,556.66,0.2996622]
[1743964406253,1.60919219,558.55,556.67,0.2996622]
[1743964406456,0.32944705,558.54,556.68,0.2996622]
[1743964406658,2.45649252,558.54,556.69,0.2996622]
[1743964406859,2.60019219,558.53,556.7,0.2996622]
[1743964407158,2.45649252,558.52,556.71,0.2996622]
[1743964407358,1.60919219,558.51,556.72,0.2996622]
[1743964407658,3.40679061,558.51,556.73,0.2996622]
[1743964407853,3.40679061,558.5,556.73,0.2996622]
[1743964408056,1.27974514,558.5,556.74,0.2996622]
[1743964408257,1.27974514,558.5,556.75,0.29951216]
[1743964408458,3.40252699,558.52,556.76,0.29951216]
[1743964408755,1.27974514,558.51,556.77,0.29951216]
[1743964408960,2.12278581,558.52,556.78,0.29951216]
[1743964409163,2.78399292,558.51,556.78,0.29951216]
[1743964409459,0.61853803,558.5,556.79,0.29951216]
[1743964409661,1.27974514,558.5,556.8,0.29951216]
[1743964409961,0.61873508,558.52,556.81,0.29951216]
[1743964410163,0.991,558.53,556.67,0.29951216]
[1743964410358,0.901,558.51,556.68,0.29951216]
[1743964410560,0.901,558.51,556.69,0.29951216]
[1743964410762,2.79949498,558.51,556.67,0.29951216]
[1743964410962,2.12350753,558.5,556.68,0.29951216]
[1743964411163,0.61888067,558.49,556.69,0.29951216]
[1743964411463,1.50475769,558.5,556.7,0.29951216]
[1743964411464,2.12363836,558.5,556.7,0.29951216]
[1743964411662,1.27974514,558.49,556.71,0.29951216]
[1743964411861,3.4033835,558.49,556.72,0.29951216]
[1743964412063,2.12363836,558.48,556.73,0.29951216]
[1743964412266,2.12363836,558.48,556.74,0.29951216]
[1743964412463,1.27974514,558.47,556.74,0.29951216]
[1743964412661,3.4033835,558.47,556.75,0.29951216]
[1743964412860,3.4033835,558.46,556.76,0.29951216]
[1743964413065,2.12363836,558.45,556.77,0.29951216]
[1743964413268,2.12363836,558.45,556.78,0.29951216]
[1743964413568,1.60919466,558.44,556.79,0.29951216]
[1743964413769,3.4033835,558.44,556.8,0.29951216]
[1743964414064,2.12363836,558.43,556.81,0.29951216]
[1743964414275,0.32949729,558.42,556.65,0.29951216]
[1743964414569,2.45313565,558.42,556.66,0.29951216]
[1743964414773,0.32949729,558.41,556.67,0.29951216]
[1743964414972,1.60924243,558.41,556.68,0.29951216]
[1743964415173,3.4033835,558.41,556.65,0.29951216]
[1743964415369,3.4033835,558.41,556.66,0.29951216]
[1743964415370,2.12363836,558.4,556.66,0.29951216]
[1743964415573,3.4033835,558.4,556.67,0.29951216]
[1743964415769,2.12363836,558.39,556.65,0.29951216]
[1743964415969,1.27974514,558.38,556.66,0.29951216]
[1743964416169,3.40489319,558.38,556.67,0.29951216]
[1743964416373,1.27974514,558.38,556.68,0.29951216]
[1743964416570,2.126254,558.5,556.68,0.29951216]
[1743964416769,2.78642358,558.49,556.69,0.29951216]
[1743964416974,0.61957556,558.48,556.7,0.29951216]
[1743964417171,0.3294207,558.47,556.72,0.35924701]
[1743964417372,2.45588635,558.47,556.73,0.29951216]
[1743964417577,1.60916584,558.46,556.74,0.29951216]
[1743964417878,0.3294207,558.45,556.75,0.29951216]
[1743964418071,3.48988635,558.45,556.76,0.29951216]
[1743964418273,2.45588635,558.44,556.77,0.29951216]
[1743964418476,1.27974514,558.43,556.73,0.29951216]
[1743964418670,3.40621079,558.43,556.75,0.35922766]
[1743964418871,2.12646565,558.42,556.76,0.29951216]
[1743964419172,2.78806894,558.41,556.78,0.3592083]
[1743964419371,2.78806894,558.41,556.79,0.29951216]
[1743964419576,1.27974514,558.41,556.81,0.35918895]
[1743964419776,0.67011154,558.4,556.82,0.29951216]
[1743964419972,0.67011154,558.4,556.81,0.35918895]
[1743964420177,0.67011154,558.4,556.82,0.29963211]
[1743964420379,0.35816618,558.4,556.82,0.29963211]
[1743964421681,0.35816618,558.4,556.81,0.35918895]
[1743964421682,0.31195794,558.39,556.83,0.29968918]
[1743964421875,0.31195794,558.39,556.82,0.29968918]
[1743964422076,0.31195794,558.39,556.83,0.29968918]
[1743964422278,0.3295229,558.38,556.82,0.29968918]
[1743964422578,0.955,558.37,556.83,0.29968918]
[1743964422781,0.3295229,558.36,556.82,0.29968918]
[1743964422974,1.1635229,558.36,556.82,0.29968918]
[1743964423178,0.32961075,558.35,556.83,0.29982357]
[1743964423379,1.27974514,558.34,556.82,0.29982357]
[1743964423574,0.32961075,558.33,556.84,0.29982357]
[1743964423879,0.32961075,558.33,556.85,0.29982357]
[1743964424080,1.27974514,558.32,556.82,0.29982357]
[1743964424379,0.32961075,558.31,556.83,0.29982357]
[1743964424577,3.73508059,558.31,556.82,0.29982357]
[1743964424778,2.45533545,558.3,556.83,0.29982357]
[1743964424978,0.32961075,558.29,556.84,0.29982357]
[1743964425180,1.60935589,558.29,556.82,0.29982357]
[1743964425376,0.32961075,558.28,556.82,0.29982357]
[1743964425576,2.12421062,558.28,556.82,0.29982357]
[1743964425778,1.27974514,558.27,556.83,0.29982357]
[1743964425975,1.27974514,558.27,556.84,0.29982357]
[1743964426279,1.27974514,558.27,556.85,0.29982357]
[1743964426474,1.27974514,558.27,556.86,0.29982357]
[1743964426680,1.27974514,558.27,556.88,0.3591438]
[1743964426878,0.31196913,558.33,556.89,0.29982357]
[1743964427078,0.31196913,558.33,556.9,0.29982357]
[1743964427280,2.11374514,558.36,556.91,0.29982357]
[1743964427475,1.27974514,558.34,556.91,0.29982357]
[1743964427678,1.27974514,558.34,556.92,0.29982357]
[1743964427880,0.834,558.36,556.93,0.29982357]
[1743964428083,0.834,558.36,556.94,0.29982357]
[1743964428379,0.834,558.36,556.95,0.29953705]
[1743964428881,0.834,558.36,556.88,0.3591438]
[1743964429183,0.834,558.36,556.89,0.29957534]
[1743964429978,2.96148136,558.36,556.89,0.29957534]
[1743964430176,0.61992756,558.35,556.9,0.29964538]
[1743964430377,1.90132608,558.35,556.9,0.29964538]
[1743964430580,1.5075538,558.34,556.91,0.29964538]
[1743964430775,2.12748136,558.34,556.91,0.29964538]
[1743964430976,3.40887988,558.34,556.92,0.29964538]
[1743964431181,2.12748136,558.33,556.93,0.35911155]
[1743964431376,1.28139852,558.32,556.94,0.29964538]
[1743964431576,3.76709738,558.32,556.95,0.35909866]
[1743964431781,2.48570528,558.31,556.96,0.29964538]
[1743964432177,1.28139852,558.3,556.96,0.29964538]
[1743964432479,3.40887988,558.3,556.97,0.35908576]
[1743964432780,3.76711663,558.29,556.98,0.29964538]
[1743964432983,2.12748136,558.28,556.98,0.29964538]
[1743964433178,1.28139852,558.27,556.98,0.29964538]
[1743964433381,3.40887988,558.27,556.98,0.29964538]
[1743964433581,2.43947846,558.26,556.98,0.29964538]
[1743964433883,1.28139852,558.25,556.98,0.29964538]
[1743964434078,3.40887988,558.25,556.98,0.29964538]
[1743964434281,2.12748136,558.24,556.98,0.29964538]
[1743964434480,3.40887988,558.24,556.98,0.29964538]
[1743964434681,2.12748136,558.23,556.98,0.29964538]
[1743964434878,1.28139852,558.22,556.98,0.29964538]
[1743964435083,3.40887988,558.22,556.98,0.29964538]
[1743964435381,3.40911216,558.21,556.98,0.29964538]
[1743964435582,2.12771364,558.2,556.98,0.29964538]
[1743964435882,1.28139852,558.19,556.98,0.29964538]
[1743964436084,3.40911216,558.19,556.98,0.29964538]
[1743964436283,3.40911216,558.19,556.97,0.35908576]
[1743964436284,0.35832661,558.15,556.97,0.35908576]
[1743964436483,0.32961094,558.14,556.98,0.29982397]
[1743964436680,0.35832661,558.15,556.98,0.29982397]
[1743964437383,1.63972513,558.15,556.98,0.29982397]
[1743964437782,1.63972513,558.15,556.99,0.29982397]
[1743964437981,0.35832661,558.15,557.0,0.29982397]
[1743964438181,0.35832661,558.15,557.01,0.29982397]
[1743964438684,0.35832661,558.15,556.97,0.35908576]
[1743964438685,0.35832661,558.15,557.02,0.29982397]
[1743964438884,0.35832661,558.15,556.98,0.29982397]
[1743964439082,0.35832661,558.15,556.99,0.29982397]
[1743964439282,0.35832661,558.15,556.98,0.29982397]
[1743964439483,0.69,558.14,556.99,0.29982397]
[1743964439785,0.656,558.13,557.0,0.29982397]
[1743964439982,0.656,558.13,556.98,0.29982397]
[1743964440182,0.656,558.13,556.99,0.29960752]
[1743964440381,0.656,558.13,557.0,0.29960752]
[1743964440580,0.656,558.13,556.98,0.29960752]
[1743964440785,0.656,558.13,556.99,0.29960752]
[1743964441090,0.656,558.13,557.0,0.29960752]
[1743964441286,0.656,558.13,556.97,0.35908576]
[1743964441486,0.656,558.13,556.98,0.29957027]
[1743964441685,0.656,558.13,556.99,0.29957027]
[1743964441889,0.656,558.13,557.0,0.29957027]
[1743964442090,0.656,558.13,556.98,0.29957027]
[1743964442289,0.656,558.13,556.99,0.29957027]
[1743964442589,0.656,558.13,557.03,1.31653437]
[1743964442786,0.809,558.12,557.03,1.31653437]
[1743964442993,0.809,558.12,557.04,0.29957907]
[1743964444486,0.809,558.12,557.05,0.29957907]
[1743964444689,1.002,558.11,557.06,0.29957907]
[1743964444985,1.002,558.11,557.02,0.29957907]
[1743964445190,1.002,558.11,557.03,0.29957907]
[1743964445385,1.002,558.11,557.04,0.29957907]
[1743964445590,1.002,558.11,557.02,0.29957907]
[1743964445889,1.002,558.11,557.03,0.29957907]
[1743964446090,1.002,558.11,557.02,0.29957907]
[1743964446390,1.002,558.11,557.03,0.299709]
[1743964446690,1.002,558.11,557.04,0.299709]
[1743964446887,1.002,558.11,557.02,0.299709]
[1743964447287,1.002,558.11,557.01,1.31653437]
[1743964447491,1.002,558.11,557.02,0.29973224]
[1743964447686,1.002,558.11,556.98,0.29973224]
[1743964447893,1.6269718,558.11,556.99,0.29973224]
[1743964448087,3.14671707,558.11,556.99,0.29973224]
[1743964448290,1.4259718,558.1,557.0,0.29973224]
[1743964448494,4.23768532,558.1,556.98,0.29973224]
[1743964448692,2.14471707,558.09,556.99,0.29973224]
[1743964448891,2.14471707,558.09,556.97,0.35908576]
[1743964448892,2.14471707,558.09,557.0,0.29973224]
[1743964449092,1.62163443,558.08,556.98,0.29973224]
[1743964449393,0.32966618,558.07,556.99,0.29973224]
[1743964449590,2.14471707,558.07,556.98,0.29973224]
[1743964449789,1.62169278,558.06,556.97,0.35908576]
[1743964449989,3.43668532,558.06,556.97,0.35908576]
[1743964450188,3.43668532,558.05,556.97,0.35908576]
[1743964450390,2.14471707,558.04,556.97,0.35908576]
[1743964450593,1.29196825,558.03,556.98,0.29991955]
[1743964450791,3.43668532,558.03,556.97,0.35908576]
[1743964451096,3.43668532,558.02,556.98,0.29991766]
[1743964451291,3.43668532,558.01,556.98,0.29991766]
[1743964451494,2.14471707,558.0,556.98,0.29991766]
[1743964451795,1.29196825,557.99,556.98,0.29991766]
[1743964451995,3.43668532,557.99,556.98,0.29991766]
[1743964452195,3.43668532,557.98,556.98,0.29991766]
[1743964452497,2.83371707,557.97,556.76,1.31653437]
[1743964452698,0.6249718,557.96,556.77,0.29990586]
[1743964452899,1.91694005,557.96,556.77,0.29990586]
[1743964453095,1.51974527,557.95,556.77,0.29990586]
[1743964453293,3.43668532,557.95,556.77,0.29990586]